Cogmind - Beta 13 *** ADVENTURER MODE // 2024.05.19 @ 16:33:10 Player: Adhoah Result: Destroyed by Cetus Guard with Advanced Variable Charge Gun Performance ------------- Evolutions (4) 2000 Regions Visited (12) 2400 Robots Destroyed (129) 645 Value Destroyed (3917) 3917 Prototype IDs (25) 500 Alien Tech Used (0) 0 Bonus (1347) 1347 TOTAL SCORE: 10809 Bonus ------- High Alert Combat Kills 158 Follower Combat Kills 689 Entered Garrisons 200 Aligned with FarCom 300 Cogmind --------- Core Integrity 0/850 Matter 290/300 Energy 450/450 System Corruption 7% Temperature Cool (9) Movement Core (450) Ox8 Location -6/Cetus Parts ------- > --- POWER (3) -------- (None) > --- PROPULSION (4) --- (None) > --- UTILITY (5) ------ Large Storage Unit Energy Well > --- WEAPON (3) ------- (None) > --- INVENTORY (15) --- Improved Cooling System Compact Battery (200) Advanced Targeting Computer Energy Filter Improved Weapon Shielding Peak State ------------ > --- POWER ------------ Light Angular Momentum Engine Light Angular Momentum Engine Light Angular Momentum Engine > --- PROPULSION ------- Carbon-fiber Leg Carbon-fiber Leg Flexi-carbon Leg Myomer Leg > --- UTILITY ---------- Advanced Heat Sink Medium Storage Unit Improved Targeting Computer Advanced Targeting Computer Improved Light Armor Plating > --- WEAPON ----------- Gatling Laser Plasma Rifle Improved Heavy Laser > --- INVENTORY -------- Improved Deuterium Engine Carbon-fiber Leg Advanced Heat Sink Compact Battery Energy Well Energy Filter Improved Weapon Shielding Improved Light Armor Plating Heavy Laser Phasing Sabre [Rating: 66] Favorites ----------- Power Light Angular Momentum Engine Engine Light Angular Momentum Engine Power Core Light Nuclear Core Propulsion Wheel Treads Light Treads Leg Carbon-fiber Leg Wheel Wheel Utility Medium Storage Unit Device Advanced Heat Sink Storage Medium Storage Unit Processor Advanced Targeting Computer Hackware Hacking Suite Protection Improved Light Armor Plating Weapon Particle Cannon Energy Gun Heavy Laser Energy Cannon Particle Cannon Ballistic Cannon Bore Cannon Special Weapon Mining Laser Slashing Weapon Phasing Sabre Build | -11 -10 -9 -9 -9 -8 -8 -7 -6 -6 -6 -6 -6 ------- Run | Yrd Mat Mat Min Exi Min Mat Fac Fac Gar Fac Ext Cet Slots Evolved 8 | . . 2 . . . 2 2 2 . . . . Power 2 | . . . . . . 1 . 1 . . . . Propulsion 2 | . . 1 . . . 1 . . . . . . Utility 3 | . . 1 . . . . 2 . . . . . Weapon 1 | . . . . . . . . 1 . . . . Parts Attached 146 | 2 19 6 . 2 7 7 9 2 35 6 44 7 Power 28 | 1 2 . . . 3 1 . 1 7 3 8 2 Engine 21 | 1 2 . . . 3 1 . . 3 3 6 2 Core 7 | . . . . . . . . 1 4 . 2 . Reactor . | . . . . . . . . . . . . . Propulsion 39 | . 4 2 . . 2 4 5 . 6 . 15 1 Treads 3 | . . . . . . . . . . . 3 . Leg 23 | . . . . . . . 4 . 6 . 12 1 Wheel 13 | . 4 2 . . 2 4 1 . . . . . Hover . | . . . . . . . . . . . . . Flight . | . . . . . . . . . . . . . Utility 32 | . 9 2 . 1 2 1 4 . 4 . 7 2 Device 10 | . 3 2 . . 1 . . . 2 . 2 . Storage 6 | . 3 . . 1 . . . . . . 1 1 Processor 2 | . . . . . . . 2 . . . . . Hackware 1 | . . . . . . . 1 . . . . . Protection 13 | . 3 . . . 1 1 1 . 2 . 4 1 Artifact . | . . . . . . . . . . . . . Weapon 47 | 1 4 2 . 1 . 1 . 1 18 3 14 2 Energy Gun 27 | 1 1 1 . . . . . 1 12 3 7 1 Energy Cannon 5 | . 2 1 . 1 . 1 . . . . . . Ballistic Gun . | . . . . . . . . . . . . . Ballistic Cannon 1 | . . . . . . . . . . . 1 . Launcher . | . . . . . . . . . . . . . Special Weapon 1 | . 1 . . . . . . . . . . . Impact Weapon . | . . . . . . . . . . . . . Slashing Weapon 13 | . . . . . . . . . 6 . 6 1 Piercing Weapon . | . . . . . . . . . . . . . Special Melee Weapon . | . . . . . . . . . . . . . Unidentified Prototypes 2 | . . 1 . . . . . . . 1 . . Parts Lost 48 | . . . . . 2 . . . 13 . 15 18 Power 11 | . . . . . . . . . 6 . 1 4 Propulsion 16 | . . . . . 1 . . . 4 . 6 5 Utility 11 | . . . . . 1 . . . 1 . 4 5 Weapon 10 | . . . . . . . . . 2 . 4 4 Highest Loss Streak 18 | . . . . . 1 . . . 5 . 3 18 To Critical Strikes 2 | . . . . . . . . . . . . 2 Average Slot Usage (%) 95 | . 99 100 100 100 97 93 97 100 92 97 93 72 Engine 14 | . 14 11 11 11 11 18 15 13 8 17 18 13 Core 1 | . . . . . . . . 6 5 . 1 . Leg 12 | . . . . . . . 6 26 24 26 21 15 Wheel 14 | . 27 33 33 33 32 30 21 . . . . . Device 7 | . 4 11 11 11 11 9 7 6 5 6 6 9 Storage 8 | . 11 11 11 11 11 9 7 6 6 6 6 7 Processor 7 | . . . . . . . 15 13 13 13 12 4 Protection 7 | . 11 11 11 11 9 9 6 6 6 6 4 5 Energy Gun 9 | . 13 . . . . . . 6 11 20 14 9 Energy Cannon 8 | . 8 22 22 22 22 18 15 13 5 . . . Slashing Weapon 1 | . . . . . . . . . 2 . 3 3 Naked Turns . | . . . . . . . . . . . . . Heaviest Build 86 | 5 25 26 26 37 37 46 44 53 53 54 86 85 Greatest Support 75 | 3 20 30 30 30 30 40 72 72 74 65 75 70 Greatest Overweight (x) 15 | 1 1 . . 1 1 1 2 . 1 . 1 15 Average Overweight (x) . | . . . . . . 1 . . . . . 1 Largest Inventory Capacity 25 | 5 25 8 8 10 10 10 10 10 10 10 15 15 Average Capacity 10 | 5 7 8 8 9 10 10 10 10 10 10 12 15 Most Carried 15 | 3 8 8 8 8 10 10 10 8 10 10 15 11 Average Carried 9 | 1 6 7 8 7 9 9 9 7 9 9 11 8 Final Capacity 15 | 5 8 8 8 10 10 10 10 10 10 10 15 15 Final Carried 11 | 2 8 8 8 8 9 10 9 7 10 10 11 5 Class Distribution -------------------- 49% | Scavenger-Mutant 27% | Mutant 19% | Scavenger-Gunner 3% | Gunner Dominant Class ---------------- Mutant | -10/Materials Mutant | -9/Materials Scavenger-Mutant | -9/Mines Mutant | -9/Exiles Scavenger-Mutant | -8/Mines Scavenger-Mutant | -8/Materials Scavenger-Mutant | -7/Factory Gunner | -6/Factory Scavenger-Mutant | -6/Garrison Scavenger-Gunner | -6/Factory Scavenger-Mutant | -6/Extension Mutant | -6/Cetus Resources | -11 -10 -9 -9 -9 -8 -8 -7 -6 -6 -6 -6 -6 ----------- Run | Yrd Mat Mat Min Exi Min Mat Fac Fac Gar Fac Ext Cet Matter Collected 1952 | 220 180 70 . . 124 40 128 . 493 101 596 . Remotely . | . . . . . . . . . . . . . Salvage Created 5402 | 22 741 209 48 . 826 618 . . 1100 139 1699 . Parts 230 | 1 43 12 1 . 35 24 . . 52 4 58 . Haulers Intercepted 3 | . 2 . . . . 1 . . . . . . Recyclers Shooed 4 | . 1 . . . 1 . . . . . 2 . Parts Field Recycled . | . . . . . . . . . . . . . Retrieved Matter . | . . . . . . . . . . . . . Parts Self-Destructed . | . . . . . . . . . . . . . Prevented . | . . . . . . . . . . . . . Kills | -11 -10 -9 -9 -9 -8 -8 -7 -6 -6 -6 -6 -6 ------- Run | Yrd Mat Mat Min Exi Min Mat Fac Fac Gar Fac Ext Cet Combat Hostiles Destroyed 88 | . 9 2 1 . 16 9 . . 22 2 27 . Melee 12 | . . . . . . . . . 8 . 4 . Guns 28 | . 4 . . . . . . . 1 2 21 . Cannons 30 | . 4 1 1 . 14 . . . 9 . 1 . AOE 12 | . . . . . 2 8 . . 2 . . . Classes Destroyed 13 | 1 7 . . . 1 2 . . 1 . 1 . Worker 8 | 1 2 . . . 2 2 . . . 1 . . Builder 8 | . 2 1 . . 1 2 . . . . 2 . Tunneler 1 | . 1 . . . . . . . . . . . Hauler 3 | . 2 . . . . 1 . . . . . . Recycler 9 | . 3 1 . . 3 . . . . . 2 . Operator 2 | . . . . . . 1 . . . . 1 . Watcher 10 | . 3 3 . . . 1 . . . . 3 . Swarmer 30 | . 6 . . . 9 . . . 8 . 7 . Grunt 42 | . 3 2 1 . 6 8 . . 11 2 9 . Duelist 1 | . . . . . . . . . 1 . . . Sentry 7 | . . . . . . 1 . . 2 . 4 . Hunter 5 | . . . . . 1 . . . . . 4 . Behemoth 2 | . . . . . . . . . . . 2 . Butcher 1 | . . . . . . . . . . . 1 . Best Kill Streak 10 | 1 6 3 1 . 7 6 . . 10 1 7 . Combat Bots Only 10 | . 3 1 1 . 6 5 . . 10 1 6 . Max Kills in Single Turn 4 | 1 2 1 1 . 2 4 . . 2 1 2 . Gunslinging 1 | . . . . . . . . . . . 1 . Exploded 4 | . . . . . 2 4 . . 1 . . . Melee 1 | . . . . . . . . . 1 . 1 . Uniques/NPCs Destroyed . | . . . . . . . . . . . . . Combat | -11 -10 -9 -9 -9 -8 -8 -7 -6 -6 -6 -6 -6 -------- Run | Yrd Mat Mat Min Exi Min Mat Fac Fac Gar Fac Ext Cet Hostile Shots Fired 858 | . 38 10 . . 72 26 . . 250 3 324 135 Missed 260 | . 10 3 . . 28 7 . . 57 2 108 45 Damage Taken 7522 | . 213 64 9 . 391 227 . . 2006 85 2593 1934 Core 1044 | . 35 22 . . 65 63 . . 236 . 336 287 Absorbed by Shields . | . . . . . . . . . . . . . Ignored by Resistances 2139 | . 69 19 3 . 115 66 . . 583 22 742 520 Regen/Repaired (Parts) 75 | . 25 . . . . . 50 . . . . . Core Remaining (%) 90 | 100 86 . . . 78 88 100 . . . . . Volleys Fired 341 | 3 66 17 4 1 74 29 2 . 44 4 92 5 Largest 3 | 1 2 2 2 2 2 2 1 . 3 3 3 3 Hottest 224 | 40 136 136 136 136 128 128 68 . 224 220 220 193 Shots Fired 561 | 3 74 34 8 2 77 35 2 . 77 13 221 15 Gun 346 | 3 56 . . . . . . . 47 13 212 15 Cannon 213 | . 16 34 8 2 77 35 2 . 30 . 9 . Launcher . | . . . . . . . . . . . . . Special 2 | . 2 . . . . . . . . . . . Kinetic 9 | . . . . . . . . . . . 9 . Thermal 466 | . 18 34 8 2 74 28 2 . 65 13 212 10 Explosive . | . . . . . . . . . . . . . Electromagnetic 86 | 3 56 . . . 3 7 . . 12 . . 5 Robot Hit Streak 60 | 3 23 10 5 . 11 4 4 . 38 56 60 35 Robot Miss Streak 3 | . 2 3 2 . 2 1 . . 2 . 3 1 Penetration Max . | . . . . . . . . . . . . . Secondary Targets 4 | . . . . . . . . . . 1 3 . Max Gunslinging Chain 1 | . . . . . . . . . . 1 1 . Shots Hit Robots 475 | 3 60 23 5 . 54 21 2 . 89 10 194 14 Core Hits 286 | 1 25 6 2 . 37 17 1 . 78 9 102 8 Critical Kills 2 | . . 1 . . . . . . . . 1 . Critical Parts Destroyed 4 | . . . . . . . . . . . 4 . Critical Strikes 22 | . 2 1 . . . . . . 3 1 15 . Burn 10 | . . . . . . . . . 1 1 8 . Meltdown 1 | . . 1 . . . . . . . . . . Destroy 5 | . . . . . . . . . . . 5 . Corrupt 2 | . 2 . . . . . . . . . . . Sever 4 | . . . . . . . . . 2 . 2 . Melee Attacks 85 | . . . . . . . . . 26 . 59 . Impact . | . . . . . . . . . . . . . Slashing 85 | . . . . . . . . . 26 . 59 . Piercing . | . . . . . . . . . . . . . Sneak Attacks . | . . . . . . . . . . . . . Combat Hostiles . | . . . . . . . . . . . . . Follow-up Attacks . | . . . . . . . . . . . . . Damage Inflicted 13014 | 39 1017 474 104 . 1407 1887 42 . 2664 255 4868 257 Guns 6511 | 39 690 . . . . . . . 946 255 4324 257 Cannons 3052 | . 203 474 104 . 1185 393 42 . 525 . 126 . Explosions 2467 | . 124 . . . 222 1494 . . 627 . . . Melee 984 | . . . . . . . . . 566 . 418 . Ramming . | . . . . . . . . . . . . . Kinetic 126 | . . . . . . . . . . . 126 . Thermal 8808 | . 327 474 104 . 1173 503 42 . 1402 255 4324 204 Explosive . | . . . . . . . . . . . . . Electromagnetic 3096 | 39 690 . . . 234 1384 . . 696 . . 53 Impact . | . . . . . . . . . . . . . Slashing 984 | . . . . . . . . . 566 . 418 . Piercing . | . . . . . . . . . . . . . Highest Corruption 20 | . . . . . 4 20 . . 6 6 7 7 Average Corruption 6 | . . . . . 3 16 . . 5 6 6 7 Corruption Purged . | . . . . . . . . . . . . . Corruption Blocked . | . . . . . . . . . . . . . Effects 124 | . . . . . 16 10 . . 24 11 60 3 Message Errors 21 | . . . . . 2 4 . . 3 2 10 . Matter Fused 44 | . . . . . 5 1 . . 14 3 21 . Heat Flow Errors 11 | . . . . . 2 1 . . 3 . 3 2 Energy Discharges 13 | . . . . . 2 . . . 2 2 7 . Parts Rejected 1 | . . . . . . . . . . . . 1 Parts Fused 2 | . . . . . . . . . . 1 1 . Data Loss (minor) 9 | . . . . . 2 . . . 1 2 4 . Data Loss (major) 11 | . . . . . 1 2 . . 1 . 7 . Misfires 6 | . . . . . 2 1 . . . 1 2 . Alerts 3 | . . . . . . . . . . . 3 . Weapon Failures 3 | . . . . . . 1 . . . . 2 . Overload Shots . | . . . . . . . . . . . . . Overflow Damage 124 | . . . . . 36 59 . . 29 . . . Projectiles 68 | . . . . . 36 12 . . 20 . . . Explosions 51 | . . . . . . 47 . . 4 . . . Melee 5 | . . . . . . . . . 5 . . . Knockbacks 3 | . . . . . . . . . . . 3 . Impact . | . . . . . . . . . . . . . Kinetic 3 | . . . . . . . . . . . 3 . Secondary . | . . . . . . . . . . . . . Self-Inflicted Damage 32 | . 23 . . . . . . . 9 . . . Shots 2 | . 1 . . . . . . . 1 . . . Rammed . | . . . . . . . . . . . . . Targets Rammed . | . . . . . . . . . . . . . Kicked . | . . . . . . . . . . . . . Crushed . | . . . . . . . . . . . . . Highest Temperature 625 | . 386 258 104 33 239 78 . . 565 114 470 625 Average Temperature 130 | . 112 115 54 22 51 20 . . 193 57 133 271 Received Heat Transfer 2553 | . 48 48 6 . 144 135 . . 912 33 813 414 Effects 34 | . . . . . . . . . 13 . 11 10 Shutdowns 9 | . . . . . . . . . 4 . 4 1 Energy Bleed 4 | . . . . . . . . . 1 . 1 2 Interference 7 | . . . . . . . . . 3 . 4 . Matter Decay 2 | . . . . . . . . . 2 . . . Damage (minor) 3 | . . . . . . . . . 1 . 1 1 Damage (major) 9 | . . . . . . . . . 2 . 1 6 Siege Activations . | . . . . . . . . . . . . . Robots Corrupted 6 | . 3 . . . . 1 . . 2 . . . Combat Hostiles 4 | . 1 . . . . 1 . . 2 . . . Parts Fried 18 | . 6 . . . . 9 . . 3 . . . Impact Corruptions . | . . . . . . . . . . . . . Robots Melted 3 | . . 1 . . . . . . . . 2 . Combat Hostiles 2 | . . 1 . . . . . . . . 1 . Parts Melted 39 | . 2 2 1 . 3 2 . . 5 . 24 . Heat Transferred 16706 | . 520 851 185 . 2109 816 74 . 2180 585 9053 333 Parts Sabotaged . | . . . . . . . . . . . . . Parts Stolen . | . . . . . . . . . . . . . Parts Stripped . | . . . . . . . . . . . . . Power Chain Reactions 3 | . 3 . . . . . . . . . . . Latent Energy Used 1729 | . . . . . 169 1289 . . 271 . . . LE Corruption 30 | . . . . . 4 20 . . 6 . . . Alert | -11 -10 -9 -9 -9 -8 -8 -7 -6 -6 -6 -6 -6 ------- Run | Yrd Mat Mat Min Exi Min Mat Fac Fac Gar Fac Ext Cet Peak Influence 528 | 5 195 139 65 . 225 477 157 66 528 455 424 36 Initial 239 | . 2 23 45 . . 37 107 66 47 239 107 36 Average 197 | 2 59 82 60 . 92 208 144 66 387 291 231 14 Maximum Alert Level 2 | . . . . . 1 2 . . 2 2 2 . Low Security (%) 53 | 100 100 100 100 . 82 51 100 100 20 . 32 100 Level 1 35 | . . . . . 17 21 . . 22 91 64 . Level 2 11 | . . . . . . 27 . . 57 8 2 . Level 3 . | . . . . . . . . . . . . . Level 4 . | . . . . . . . . . . . . . Level 5 . | . . . . . . . . . . . . . High Security . | . . . . . . . . . . . . . Max Security . | . . . . . . . . . . . . . Squads Dispatched 18 | . 1 3 . . . 3 1 . . 3 7 . Investigation 12 | . 1 1 . . . 2 . . . 2 6 . Extermination 2 | . . . . . . . 1 . . 1 . . Reinforcement 4 | . . 2 . . . 1 . . . . 1 . Assault . | . . . . . . . . . . . . . Garrison . | . . . . . . . . . . . . . Intercept . | . . . . . . . . . . . . . Searches Triggered . | . . . . . . . . . . . . . Construction Impeded 1 | . . . . . . . . . . . 1 . Haulers Reinforced . | . . . . . . . . . . . . . Active Scanning Responses . | . . . . . . . . . . . . . Cargo Convoy Interrupts . | . . . . . . . . . . . . . Stealth | -11 -10 -9 -9 -9 -8 -8 -7 -6 -6 -6 -6 -6 --------- Run | Yrd Mat Mat Min Exi Min Mat Fac Fac Gar Fac Ext Cet Distress Signals 7 | . . 3 . . . 2 . . . . 1 1 Communications Jammed . | . . . . . . . . . . . . . Distress Signals . | . . . . . . . . . . . . . Times Spotted 146 | . 16 11 2 . 19 13 1 . 30 6 43 5 Peak Tracking Total 12 | . 3 5 2 . 4 5 1 . 12 4 7 5 Tactical Retreats 11 | . . 1 . . 2 1 . . 1 . 6 . Traps | -11 -10 -9 -9 -9 -8 -8 -7 -6 -6 -6 -6 -6 ------- Run | Yrd Mat Mat Min Exi Min Mat Fac Fac Gar Fac Ext Cet Traps Triggered 8 | . 3 . . . . 2 1 . 2 . . . Indirectly . | . . . . . . . . . . . . . Trap Hack Attempts . | . . . . . . . . . . . . . Triggered . | . . . . . . . . . . . . . Disarmed 1 | . 1 . . . . . . . . . . . Reprogrammed . | . . . . . . . . . . . . . Reused . | . . . . . . . . . . . . . Traps Extracted . | . . . . . . . . . . . . . Installed . | . . . . . . . . . . . . . Triggered . | . . . . . . . . . . . . . Machines | -11 -10 -9 -9 -9 -8 -8 -7 -6 -6 -6 -6 -6 ---------- Run | Yrd Mat Mat Min Exi Min Mat Fac Fac Gar Fac Ext Cet Machines Disabled 9 | . 1 . . 1 . 5 . . 1 . 1 . Max in Single Turn 2 | . 1 . . 1 . 2 . . 1 . 1 . Machines Repaired . | . . . . . . . . . . . . . Machines Dismantled . | . . . . . . . . . . . . . Machines Sabotaged . | . . . . . . . . . . . . . Overloaded Fab Kills . | . . . . . . . . . . . . . Hacking | -11 -10 -9 -9 -9 -8 -8 -7 -6 -6 -6 -6 -6 --------- Run | Yrd Mat Mat Min Exi Min Mat Fac Fac Gar Fac Ext Cet Machines Accessed 38 | . 11 . . 3 . . 3 1 2 3 15 . Terminals 25 | . 8 . . . . . 2 . 2 1 12 . Fabricators 2 | . . . . . . . . . . 2 . . Repair Stations 3 | . 1 . . . . . 1 . . . 1 . Recycling Units 4 | . 2 . . . . . . . . . 2 . Scanalyzers . | . . . . . . . . . . . . . Garrison Access 1 | . . . . . . . . 1 . . . . Total Hacks 83 | . 21 . . 13 . . 7 1 4 5 32 . Successful 53 | . 20 . . 13 . . 4 1 1 5 9 . Failed 30 | . 1 . . . . . 3 . 3 . 23 . Catastrophic 10 | . 1 . . . . . 2 . 1 . 6 . Database Lockouts . | . . . . . . . . . . . . . Manual 2 | . . . . 2 . . . . . . . . Terminals 50 | . 16 . . . . . 5 . 4 1 24 . Fabricators 4 | . . . . . . . . . . 4 . . Repair Stations 8 | . 2 . . . . . 2 . . . 4 . Recycling Units 7 | . 3 . . . . . . . . . 4 . Scanalyzers . | . . . . . . . . . . . . . Garrison Access 1 | . . . . . . . . 1 . . . . Terminal Hacks 40 | . 15 . . 13 . . 2 . 1 1 8 . Record 17 | . 5 . . 12 . . . . . . . . Part Schematic 1 | . . . . . . . . . . . 1 . Robot Schematic 1 | . . . . . . . 1 . . . . . Open Door 3 | . . . . . . . . . . 1 2 . Emergency Access Points 2 | . 2 . . . . . . . . . . . Recycling Unit Index 1 | . 1 . . . . . . . . . . . Scanalyzer Index 1 | . 1 . . . . . . . . . . . Locate Traps 6 | . 1 . . . . . 1 . . . 4 . Disarm Traps 1 | . 1 . . . . . . . . . . . Dispatch Records 1 | . 1 . . . . . . . . . . . Maintenance Status 1 | . 1 . . . . . . . . . . . Transport Status 1 | . . . . . . . . . . . 1 . Hauler Manifests 1 | . 1 . . . . . . . . . . . Zone Layout 1 | . 1 . . . . . . . . . . . Garrison Registry 1 | . . . . . . . . . 1 . . . Derelict Proto ID Bank 1 | . . . . 1 . . . . . . . . Fabricator Hacks 4 | . . . . . . . . . . 4 . . Load Schematic 2 | . . . . . . . . . . 2 . . Build 2 | . . . . . . . . . . 2 . . Repair Station Hacks 5 | . 2 . . . . . 2 . . . 1 . Scan Component 3 | . 1 . . . . . 1 . . . 1 . Repair 2 | . 1 . . . . . 1 . . . . . Recycling Unit Hacks 3 | . 3 . . . . . . . . . . . Retrieve Matter 1 | . 1 . . . . . . . . . . . Retrieve Components 2 | . 2 . . . . . . . . . . . Scanalyzer . | . . . . . . . . . . . . . Garrison Access Hacks 1 | . . . . . . . . 1 . . . . Unlock Access 1 | . . . . . . . . 1 . . . . Unauthorized Hacks . | . . . . . . . . . . . . . Terminals . | . . . . . . . . . . . . . Fabricators . | . . . . . . . . . . . . . Repair Stations . | . . . . . . . . . . . . . Recycling Units . | . . . . . . . . . . . . . Scanalyzers . | . . . . . . . . . . . . . Garrison Access . | . . . . . . . . . . . . . Data Cores Recovered 1 | . . . . . . . . . . . 1 . Used . | . . . . . . . . . . . . . Hacking Detections 26 | . 7 . . . . . 3 . 2 2 12 . Full Trace Events 9 | . . . . . . . . . 1 2 6 . Feedback Events 1 | . . . . . . . . . . . 1 . Corruption 1 | . . . . . . . . . . . 1 . Feedback Blocked . | . . . . . . . . . . . . . Robot Schematics Acquired 1 | . . . . . . . 1 . . . . . Robots Built 4 | . . . . . . . . . . 4 . . Authchips . | . . . . . . . . . . . . . Time 134 | . . . . . . . . . . 134 . . Total Robot Build Rating 16 | . . . . . . . . . . 16 . . Part Schematics Acquired 1 | . . . . . . . . . . . 1 . Parts Built . | . . . . . . . . . . . . . Authchips . | . . . . . . . . . . . . . Time . | . . . . . . . . . . . . . Total Part Build Rating . | . . . . . . . . . . . . . Parts Repaired 2 | . 1 . . . . . 1 . . . . . Time 42 | . 26 . . . . . 16 . . . . . Parts Recycled . | . . . . . . . . . . . . . Recycled Matter . | . . . . . . . . . . . . . Retrieved Matter . | . . . . . . . . . . . . . Retrieved Components 5 | . 5 . . . . . . . . . . . Parts Scanalyzed . | . . . . . . . . . . . . . Part Schematics Acquired . | . . . . . . . . . . . . . Parts Damaged . | . . . . . . . . . . . . . Bothacking | -11 -10 -9 -9 -9 -8 -8 -7 -6 -6 -6 -6 -6 ------------ Run | Yrd Mat Mat Min Exi Min Mat Fac Fac Gar Fac Ext Cet Used RIF Installer . | . . . . . . . . . . . . . Robots Hacked . | . . . . . . . . . . . . . Non-combat . | . . . . . . . . . . . . . Combat . | . . . . . . . . . . . . . Robot Hacks Applied . | . . . . . . . . . . . . . Relay Couplers Released . | . . . . . . . . . . . . . Fabnet Peak Effective % . | . . . . . . . . . . . . . Robots Rewired 1 | . . . . . . . . . . . 1 . Allies Hacked 1 | . . . . . . . . . . 1 . . Hacks Repelled . | . . . . . . . . . . . . . Allies | -11 -10 -9 -9 -9 -8 -8 -7 -6 -6 -6 -6 -6 -------- Run | Yrd Mat Mat Min Exi Min Mat Fac Fac Gar Fac Ext Cet Total Allies 8 | . . . . . . . . . . 4 4 . Largest Group 4 | . . . . . . . . . . 3 4 . Highest-Rated Group 137 | . . . . . . . . . . 117 137 . Highest-Rated Ally 40 | . . . . . . . . . . 40 40 . Total Orders . | . . . . . . . . . . . . . Ally Attacks 69 | . . . . . . . . . . 16 53 . Total Damage 1751 | . . . . . . . . . . 502 1249 . Kills 20 | . . . . . . . . . . 6 14 . Allies Corrupted . | . . . . . . . . . . . . . Allies Melted 1 | . . . . . . . . . . . 1 . Intel | -11 -10 -9 -9 -9 -8 -8 -7 -6 -6 -6 -6 -6 ------- Run | Yrd Mat Mat Min Exi Min Mat Fac Fac Gar Fac Ext Cet Robot Analysis Total . | . . . . . . . . . . . . . Derelict Logs Recovered . | . . . . . . . . . . . . . Drone Launches . | . . . . . . . . . . . . . Drone Recoveries . | . . . . . . . . . . . . . Exploration | -11 -10 -9 -9 -9 -8 -8 -7 -6 -6 -6 -6 -6 ------------- Run | Yrd Mat Mat Min Exi Min Mat Fac Fac Gar Fac Ext Cet Turns Passed 7419 | 55 977 180 51 692 902 423 272 29 983 403 2341 111 Spaces Moved 4974 | 58 870 144 42 753 707 250 218 22 551 215 1110 34 Core 68 | 58 7 . . . . . . . . . . 3 Treads 73 | . . . . . . . . . . . 73 . Legs 1904 | . . . . . . . 48 22 551 215 1037 31 Wheels 2929 | . 863 144 42 753 707 250 170 . . . . . Hover . | . . . . . . . . . . . . . Flight . | . . . . . . . . . . . . . Fastest Speed 50 | 50 80 80 80 80 80 95 86 120 120 120 120 120 Average Speed 110 | 75 84 80 80 90 92 95 99 120 120 120 156 230 Slowest Speed 800 | 100 100 80 80 95 95 95 260 120 190 120 240 800 Overloaded Moves . | . . . . . . . . . . . . . Propulsion Burnouts . | . . . . . . . . . . . . . Robots Hopped . | . . . . . . . . . . . . . Cave-ins Triggered . | . . . . . . . . . . . . . Exploration Rate (%) 40 | 5 96 24 18 92 96 19 6 1 68 5 81 20 Regions Visited 12 Branch Regions 5 Pre-discovered Areas . | . . . . . . . . . . . . . Known Exits Taken 1 | . . . . . . . . 1 . . . . Unknown Exits Taken 10 | 1 1 1 1 1 1 1 1 . . 1 1 . Scrap Searched 1 | . . . . . 1 . . . . . . . Spaces Dug 14 | . 2 . . . . . . . . . 12 . Terrain Destroyed 142 | . 16 . . . . 112 . . . . 14 . Melee 12 | . . . . . . . . . . . 12 . Projectile 5 | . 2 . . . . 1 . . . . 2 . AOE 125 | . 14 . . . . 111 . . . . . . Terrain Rammed . | . . . . . . . . . . . . . Walls Destroyed . | . . . . . . . . . . . . . Machines Disabled . | . . . . . . . . . . . . . Actions | -11 -10 -9 -9 -9 -8 -8 -7 -6 -6 -6 -6 -6 --------- Run | Yrd Mat Mat Min Exi Min Mat Fac Fac Gar Fac Ext Cet Total 6252 | 66 1036 175 51 758 882 402 272 24 754 350 1426 56 Wait 529 | . 43 3 6 . 89 107 27 . 64 119 61 10 Move 4961 | 57 869 143 41 752 706 249 217 22 548 214 1109 34 Hop . | . . . . . . . . . . . . . Pick Up 102 | 4 24 3 . 1 3 4 8 . 20 2 33 . Fast Attach 26 | . 3 . . . 1 1 4 . 6 3 8 . Attach 49 | 2 6 2 . . 2 1 3 2 7 . 18 6 Detach 1 | . . . . . . . . . . . 1 . Swap 71 | . 10 4 . 2 4 5 2 . 22 3 18 1 Drop 82 | . 15 3 . 2 3 6 9 . 14 5 25 . Fire 341 | 3 66 17 4 1 74 29 2 . 44 4 92 5 Melee 85 | . . . . . . . . . 26 . 59 . Ram . | . . . . . . . . . . . . . Kick . | . . . . . . . . . . . . . Crush . | . . . . . . . . . . . . . Escape Stasis 3 | . . . . . . . . . 3 . . . Rewire 2 | . . . . . . . . . . . 2 . Trap . | . . . . . . . . . . . . . Miscellaneous . | . . . . . . . . . . . . . Route ------- -11/Scrapyard -10/Materials (discovered 4 exits: [*Mat x3] / [*Min]) -9/Materials -9/Mines -9/Exiles (discovered 2 exits: [*Min x2]) -8/Mines (discovered 2 exits: [*Mat x2]) -8/Materials -7/Factory -6/Factory -6/Garrison (discovered 3 exits: *Fac x3) -6/Factory -6/Extension (discovered 2 exits: [*Fac] / [*Cet]) -6/Cetus History --------- Turn | Location | Event 2 | -11/Scrapyard | Met Revision 17 46 | -11/Scrapyard | Discovered new exit (range 8) 56 | -11/Scrapyard | Entered Materials 303 | -10/Materials | Build established: Mutant 467 | -10/Materials | Discovered new exit (range 8) 515 | -10/Materials | Repaired Wheel 542 | -10/Materials | Discovered new exit (range 16) 627 | -10/Materials | Discovered new exit (range 5) 827 | -10/Materials | Discovered new exit (range 16) 1033 | -10/Materials | Entered another Materials area 1033 | -9/Materials | Evolved 2 slots: Propulsion x1, Utility x1 1159 | -9/Materials | Met 8R-AWN 1192 | -9/Materials | Discovered new exit (range 11) 1213 | -9/Materials | Entered Mines 1214 | -9/Mines | Followed 8R-AWN into the Mines 1254 | -9/Mines | Discovered new exit (range 5) 1264 | -9/Mines | Entered Exiles 1285 | -9/Exiles | Discovered new exit (range 15) 1304 | -9/Exiles | Welcomed by 8R-AWN 1322 | -9/Exiles | Met EX-HEX 1375 | -9/Exiles | Met EX-BIN 1392 | -9/Exiles | Aligned with FarCom system 1393 | -9/Exiles | Given EX-Vault access code 1422 | -9/Exiles | Opened EX-Vault 1430 | -9/Exiles | Found Latent Energy Streamer 1452 | -9/Exiles | Warned to stay clear of 0b10 Research branches 1471 | -9/Exiles | Build established: Scavenger-Mutant 1482 | -9/Exiles | Met EX-DEC 1556 | -9/Exiles | Discovered new exit (range 11) 1632 | -9/Exiles | Visited The Gauntlet 1794 | -9/Exiles | Learned about 8R-AWN's background 1844 | -9/Exiles | Build established: Mutant 1956 | -9/Exiles | Left Exiles lab with Latent Energy Streamer 1956 | -9/Exiles | Entered Mines 2134 | -8/Mines | Discovered new exit (range 4) 2570 | -8/Mines | Build established: Scavenger-Mutant 2812 | -8/Mines | Discovered new exit (range 13) 2858 | -8/Mines | Entered Materials 2858 | -8/Materials | Evolved 2 slots: Power x1, Propulsion x1 3101 | -8/Materials | System corruption reached 10% 3128 | -8/Materials | Discovered new exit (range 16) 3281 | -8/Materials | Entered Factory 3281 | -7/Factory | Evolved 2 slots: Utility x2 3407 | -7/Factory | Repaired Hrd. Light Armor Plating 3511 | -7/Factory | Discovered new exit (range 9) 3553 | -7/Factory | Entered another Factory area 3553 | -6/Factory | Evolved 2 slots: Power x1, Weapon x1 3582 | -6/Factory | Identified exit to Garrison 3582 | -6/Factory | Entered Garrison 3727 | -6/Garrison | Discovered new exit (range 68) 3727 | -6/Garrison | Discovered new exit (range 80) 3727 | -6/Garrison | Discovered new exit (range 58) 3775 | -6/Garrison | Triggered checkpoint 3782 | -6/Garrison | Triggered checkpoint 3787 | -6/Garrison | Triggered checkpoint 3846 | -6/Garrison | Lost 3 parts (2p1w) 3848 | -6/Garrison | Destroyed 10 combat bots 3970 | -6/Garrison | Triggered checkpoint 4152 | -6/Garrison | Lost 5 parts (3p1n1u) 4240 | -6/Garrison | Triggered checkpoint 4301 | -6/Garrison | Lost 3 parts (1p2n) 4304 | -6/Garrison | Attempted to access garrison exit controls, blocked by remote lockdown 4431 | -6/Garrison | Attempted to access garrison exit controls, blocked by remote lockdown 4565 | -6/Garrison | Entered Factory 4833 | -6/Factory | Fabricated X-62 Marksman (x2) 4872 | -6/Factory | Discovered new exit (range 10) 4874 | -6/Factory | Build established: Scavenger-Gunner 4928 | -6/Factory | Fabricated X-62 Marksman (x2) 4968 | -6/Factory | Entered Extension 4968 | -6/Extension | Accompanied by 3 allies 5058 | -6/Extension | Rescued a captive Derelict 5127 | -6/Extension | Lost 3 allies 5138 | -6/Extension | Rescued a captive Derelict 5138 | -6/Extension | Rescued a captive Derelict 5494 | -6/Extension | Spotted B-75 Beast 5531 | -6/Extension | Destroyed B-75 Beast 5546 | -6/Extension | Spotted B-75 Beast 5631 | -6/Extension | Destroyed B-75 Beast 5693 | -6/Extension | Disrupted transfer network 6232 | -6/Extension | Core integrity fell below 50% 6327 | -6/Extension | Lost 3 parts (2n1w) 6477 | -6/Extension | Build established: Scavenger-Mutant 7173 | -6/Extension | Discovered new exit (range 16) 7175 | -6/Extension | Discovered new exit (range 15) 7309 | -6/Extension | Entered Cetus 7333 | -6/Cetus | Spotted Cetus Guard 7333 | -6/Cetus | Spotted Cetus Guard 7336 | -6/Cetus | Spotted Cetus Guard 7355 | -6/Cetus | Spotted Cetus Guard 7409 | -6/Cetus | Core integrity fell below 20% 7420 | -6/Cetus | Destroyed by Cetus Guard with Advanced Variable Charge Gun Last Messages --------------- 07393_ Slug penetrates Wall. 07397_ Penetrated by Slug. 07397_ Slug penetrates Wall. 07400_ Slug penetrates Cetus Guard. 07401_ Penetrated by Slug. 07401_ Critical hit (Destroy). 07402_ Penetrated by Slug. 07404_ Slug penetrates Earth. 07405_ Imp. Cooling System destroyed. 07405_ Penetrated by Slug. 07407_ Slug penetrates Wall. 07408_ Penetrated by Slug. 07410_ Imp. Deuterium Engine destroyed. 07410_ Penetrated by Slug. 07412_ Phasing Sabre destroyed. 07412_ Penetrated by Slug. 07417_ Hrd. Medium Armor Plating destroyed. 07417_ Penetrated by Slug. 07418_ Slug penetrates Cetus Guard. 07418_ Penetrated by Slug. Map ----- +----------------------------------------------------+ | ?????????????????????????????????????????????????? | | ?????????????????????????????????????????????????? | | ?????????????????????????????????????????????????? | | ?????????????????????????????????????????????????? | | ?????????????????????????????????????????????????? | | ?????????????????????????????????????????????????? | | ?????????????????????????????????????????????????? | | ?????????????????????????????????????????????????? | | ?????????????????????????????????????????????????? | | ?????????????????????????????????????????????????? | | ??????????????????????? ???????????????????????? | | ??????????????????????# ???????????????????????? | | ??????????????????????# ???????????????????????? | | ??????????????????????# ???????????????????????? | | ??????????????????????# ???????????????????????? | | ??????????????????????# ???????????????????????? | | ??????????????????????# ???????????????????????? | | ??????????????????????# #??????????????????????? | | ??????????????????????# ###????????????????????? | | ??????????????????????# # #????????????????????? | | ??????????????????????# ; ##???????????????????? | | ?????????????????????## ; ????????????????????? | | ?????????????????????#; ; #????????????????????? | | ?????????????????????#; ; #????????????????????? | | ?????????????????????#; ;#?????????????????????? | | ?????????????????????#; @;##????????????????????? | | ?????????????????????#; ; #????????????????????? | | ?????????????????????#; ;# #???????????????????? | | ?????????????????????#; ; ##???????????????????? | | ?????????????????????#; Y ;##????????????????????? | | ?????????????????????##Y ;#?????????????????????? | | ?????????????????????#; YY;##????????????????????? | | ?????????????????????## ; #????????????????????? | | ??????????????????????# ;#?????????????????????? | | ??????????????????????# ##?????????????????????? | | ??????????????????????# " ?????????????????????? | | ??????????????????????# "##????????????????????? | | ??????????????????????# ##?????????????????????? | | ??????????????????????# ##?????????????????????? | | ?###############"######* "###"#?????????????????? | | ?# +???????????? | | ?# w +???????????? | | ?# +???????????? | | ?###############""############## ###???????????? | | ???????????????##????????????????###?????????????? | | ?????????????????????????????????????????????????? | | ?????????????????????????????????????????????????? | | ?????????????????????????????????????????????????? | | ?????????????????????????????????????????????????? | | ?????????????????????????????????????????????????? | +----------------------------------------------------+ Best States ------------- Heat Dissipation 64 Energy Generation 44 Energy Capacity 690 Matter Stores 300 Matter Capacity 300 Sight Range 16 Terrain Scan Density 10 Armor Coverage 300 Resistance: KI 20 Resistance: TH 20 Resistance: EX 20 Resistance: EM 20 Resistance: I 20 Resistance: S 20 Resistance: P 20 Evasion (%) 55 Targeting Accuracy 14 Recoil Reduction 3 Particle Charging 20 Offensive Hacking 20 Item Schematics ----------------- Adv. Coolant Injector | -6/Extension | Hacked Robot Schematics ------------------ X-62 Marksman | -7/Factory | Hacked Fabricated ------------ X-62 Marksman | x2 | -6/Factory X-62 Marksman | x2 | -6/Factory Alien Tech Used ----------------- None Achievements -------------- A New Friend Leap Before You Look Librarian My Command Is Your Wish Part-time Excavator Party Time System Compromised Tourist Challenges ------------ None Game ------ Seed PhysicsTerrabombSuperbattery Manual? 0 Play Time 02:21:16 Cumulative 7.1 hours Start 2024.05.18 @ 11:37:27 End 2024.05.19 @ 16:33:10 Sessions 3 Manual Loads 0 Difficulty Adventurer Special Mode None Game No. 3 Rogue 0 Adventurer 3 Explorer 0 Win Type - Total 0 Types 0/0/0/0/0/0/0/0/0 Lore% 4 Gallery% 11 Achievement% 10 Wizard Run 0 Options --------- Layout 0 ASCII 0 Keyboard 0 Movement Mouse Keybinds 0 Fullscreen 2 Font 36/Smallcaps Map View 76x50 Zoom Use 0% Tactical HUD 1 Map Filters NONE Filters NONE Steam 1 RUN: 27200f67-fc71-4529-ab14-de6a96ff20fe